bitfinex-derivatives/quotes_SOLF0:USTF0_20241026
["timestamp","ask_amount","ask_price","bid_price","bid_amount"]
[1729927007434,15.76874814,168.62,168.56,2.9696]
[1729927007634,12.80014814,168.61,168.56,2.9696]
[1729927008025,12.80014814,168.61,168.54,4.66]
[1729927008233,12.80014814,168.61,168.56,2.9696]
[1729927008629,12.80014814,168.63,168.58,2.9692]
[1729927008829,12.80014814,168.63,168.56,3.15640519]
[1729927009024,12.80014814,168.66,168.54,22.51096229]
[1729927009233,12.80014814,168.66,168.55,8.20644674]
[1729927009437,12.80014814,168.66,168.56,3.15563259]
[1729927009833,15.76804814,168.66,168.61,2.9688]
[1729927010032,12.80014814,168.66,168.61,2.9688]
[1729927010425,12.80014814,168.66,168.61,2.9687]
[1729927010834,12.80014814,168.66,168.56,15.95578073]
[1729927010835,12.80014814,168.66,168.56,12.80014814]
[1729927011034,12.80014814,168.66,168.54,4.66]
[1729927011035,12.80014814,168.68,168.58,17.46014814]
[1729927011240,12.80014814,168.68,168.59,4.66]
[1729927011428,12.80014814,168.7,168.59,4.66]
[1729927011633,12.80014814,168.7,168.65,2.9679]
[1729927012340,4.66,168.71,168.65,2.9679]
[1729927012341,17.46014814,168.71,168.65,2.9679]
[1729927012538,20.42724814,168.71,168.65,2.9679]
[1729927013836,20.42724814,168.71,168.6,16.58774814]
[1729927014139,20.42724814,168.71,168.66,2.9679]
[1729927019438,20.42724814,168.71,168.6,16.58774814]
[1729927020345,20.42724814,168.71,168.66,2.9678]
[1729927020844,20.42724814,168.71,168.6,16.58774814]
[1729927020845,15.76804814,168.67,168.6,2.56]
[1729927021340,12.80014814,168.67,168.6,2.56]
[1729927021648,12.80014814,168.65,168.58,4.66]
[1729927023245,12.80014814,168.69,168.59,12.80014814]
[1729927023447,12.80014814,168.71,168.61,12.80014814]
[1729927023642,12.80014814,168.71,168.67,2.9676]
[1729927024844,12.80014814,168.71,168.62,5.9258]
[1729927025051,4.66,168.73,168.62,5.9258]
[1729927025052,12.80014814,168.73,168.71,2.967]
[1729927026542,12.80014814,168.73,168.62,1.2658]
[1729927026742,12.80014814,168.7,168.63,4.66]
[1729927026942,12.80014814,168.67,168.54,119.4980714]
[1729927027155,12.80014814,168.64,168.55,8.34908824]
[1729927027456,15.76844814,168.64,168.59,2.969]
[1729927027645,12.80014814,168.64,168.59,2.969]
[1729927031745,12.80014814,168.64,168.6,2.9689]
[1729927034561,12.80014814,168.64,168.54,119.4980714]
[1729927034763,15.76874814,168.62,168.57,2.9695]
[1729927035059,20.60874814,168.62,168.57,2.9695]
[1729927038459,17.64014814,168.62,168.57,2.9695]
[1729927038660,2.9688,168.61,168.57,2.9695]
[1729927039356,20.60884814,168.62,168.57,2.9695]
[1729927042658,2.9689,168.61,168.53,4.84]
[1729927042853,17.64014814,168.62,168.53,4.84]
[1729927043257,20.60874814,168.62,168.55,2.9697]
[1729927043459,20.60874814,168.62,168.53,4.84]
[1729927044253,12.80014814,168.57,168.42,63.624]
[1729927044553,15.76964814,168.57,168.46,12.80014814]
[1729927044758,15.76964814,168.57,168.47,4.36558848]
[1729927045053,12.80014814,168.57,168.55,2.9698]
[1729927045258,12.80014814,168.59,168.55,2.9698]
[1729927046360,12.80014814,168.59,168.54,2.9699]
[1729927047065,2.9694,168.58,168.48,17.64014814]
[1729927048263,2.9694,168.58,168.53,2.9701]
[1729927048671,12.80014814,168.59,168.48,17.64014814]
[1729927048967,17.64014814,168.59,168.54,2.9699]
[1729927049860,20.60934814,168.59,168.54,2.9699]
[1729927050268,12.80014814,168.57,168.52,2.9702]
[1729927050664,12.80014814,168.57,168.48,4.84]
[1729927050860,12.80014814,168.57,168.52,2.9702]
[1729927053461,2.9708,168.5,168.44,4.2252]
[1729927053665,12.80014814,168.51,168.44,1.2536]
[1729927053878,4.84,168.51,168.44,1.2536]
[1729927054074,4.84,168.51,168.49,2.9708]
[1729927055174,4.84,168.51,168.48,2.971]
[1729927055367,4.84,168.51,168.44,1.2536]
[1729927055571,12.80014814,168.55,168.44,1.2536]
[1729927055767,4.84,168.54,168.44,1.2536]
[1729927057265,7.8102,168.54,168.44,1.2536]
[1729927057478,4.84,168.54,168.44,1.2536]
[1729927058572,12.80014814,168.53,168.44,1.2536]
[1729927058775,15.77044814,168.53,168.48,2.971]
[1729927061477,12.80014814,168.53,168.48,2.971]
[1729927061682,12.80014814,168.53,168.44,1.2536]
[1729927062077,4.84,168.55,168.54,2.9699]
[1729927062282,4.84,168.55,168.45,12.80014814]
[1729927062481,12.80014814,168.56,168.46,4.84]
[1729927062782,4.84,168.55,168.52,2.9702]
[1729927064084,4.84,168.55,168.46,4.84]
[1729927064682,12.80014814,168.54,168.46,4.84]
[1729927064885,12.80014814,168.54,168.44,1.2536]
[1729927064886,12.80014814,168.52,168.44,1.2536]
[1729927065078,12.80014814,168.5,168.44,1.2536]
[1729927065284,12.80014814,168.5,168.46,2.9714]
[1729927065984,12.80014814,168.5,168.47,2.9712]
[1729927066277,12.80014814,168.5,168.35,192.67734975]
[1729927066278,12.80014814,168.48,168.35,186.73074975]
[1729927066480,12.80014814,168.36,168.26,1.243]
[1729927066677,5.16,168.35,168.26,4.37355639]
[1729927067081,12.80014814,168.36,168.26,4.37355639]
[1729927067277,17.96014814,168.36,168.26,1.243]
[1729927067675,12.80014814,168.33,168.2,5.16]
[1729927067873,12.80014814,168.37,168.27,12.80014814]
[1729927068074,5.16,168.36,168.28,2.498]
[1729927068485,12.80014814,168.34,168.28,2.498]
[1729927068884,12.80014814,168.34,168.25,5.16]
[1729927069781,12.80014814,168.32,168.27,2.9748]
[1729927069981,12.80014814,168.32,168.25,5.16]
[1729927070379,2.9734,168.35,168.27,2.9748]
[1729927070584,12.80014814,168.31,168.27,2.9748]
[1729927071287,2.9736,168.34,168.27,2.9748]
[1729927071683,12.80014814,168.29,168.25,2.9751]
[1729927071889,12.80014814,168.27,168.2,4.54391987]
[1729927072087,12.80014814,168.27,168.2,1.2644]
[1729927072491,5.18,168.3,168.2,1.2644]
[1729927072691,12.80014814,168.28,168.2,1.2644]
[1729927072898,2.9734,168.35,168.28,2.9745]
[1729927073186,5.18,168.34,168.24,5.18]
[1729927073380,12.80014814,168.31,168.24,5.18]
[1729927073585,12.80014814,168.31,168.28,2.9746]
[1729927073787,2.9734,168.35,168.28,2.9746]
[1729927073987,12.80014814,168.32,168.28,2.9746]
[1729927074289,8.1536,168.34,168.28,2.9746]
[1729927074488,5.18,168.34,168.3,2.9743]
[1729927074692,12.80014814,168.33,168.24,5.18]
[1729927075094,12.80014814,168.33,168.29,2.9744]
[1729927075494,2.9732,168.36,168.29,2.9744]
[1729927075695,12.80014814,168.33,168.29,2.9744]
[1729927076098,12.80014814,168.31,168.26,2.9749]
[1729927076394,12.80014814,168.31,168.24,5.18]
[1729927076785,227.68917674,168.42,168.24,5.18]
[1729927076994,227.68917674,168.42,168.24,17.98014814]
[1729927077296,5.18,168.41,168.24,17.98014814]
[1729927077594,5.18,168.4,168.26,12.80014814]
[1729927077990,2.9727,168.39,168.29,2.9744]
[1729927078197,227.68917674,168.42,168.29,5.18]
[1729927078394,5.18,168.41,168.3,2.4958]
[1729927078586,12.80014814,168.37,168.33,2.9737]
[1729927078793,12.80014814,168.35,168.3,1.2002]
[1729927079100,12.80014814,168.35,168.23,1.2477]
[1729927079299,2.9729,168.38,168.26,5.18]
[1729927079596,12.80014814,168.35,168.3,2.9741]
[1729927080400,2.973,168.37,168.31,2.9741]
[1729927080598,12.80014814,168.34,168.31,2.9741]
[1729927080900,12.80014814,168.34,168.24,1.2002]
[1729927081107,12.80014814,168.32,168.25,5.18]
[1729927082302,12.80014814,168.32,168.24,1.2002]
[1729927082303,5.18,168.33,168.24,1.2002]
[1729927082598,12.80014814,168.3,168.24,1.2002]
[1729927082801,12.80014814,168.3,168.27,2.9748]
[1729927083004,12.80014814,168.3,168.21,5.18]
[1729927083398,12.80014814,168.3,168.22,2.4709]
[1729927084002,12.80014814,168.3,168.22,3.6951]
[1729927084401,5.18,168.32,168.22,3.6951]
[1729927084601,12.80014814,168.34,168.27,2.9748]
[1729927084905,12.80014814,168.34,168.25,5.18]
[1729927085598,12.80014814,168.34,168.24,5.18]
[1729927085907,12.80014814,168.32,168.24,5.18]
[1729927086307,12.80014814,168.32,168.23,1.2242]
[1729927086308,12.80014814,168.32,168.27,2.9747]
[1729927087607,2.9737,168.34,168.2,17.98014814]
[1729927087608,12.80014814,168.3,168.2,5.18]
[1729927087798,17.98014814,168.3,168.2,5.18]
[1729927088205,12.80014814,168.28,168.19,5.18]
[1729927089110,5.18,168.32,168.21,12.80014814]
[1729927089311,5.18,168.32,168.22,1.3144]
[1729927089506,15.77404814,168.33,168.26,2.9749]
[1729927089814,17.98014814,168.33,168.23,6.3757]
[1729927090202,17.98014814,168.33,168.22,12.80014814]
[1729927090409,12.80014814,168.3,168.2,17.98014814]
[1729927091211,12.80014814,168.28,168.17,12.80014814]
[1729927091404,17.98014814,168.28,168.18,4.84719607]
[1729927091603,12.80014814,168.28,168.18,3.7537]
[1729927091804,12.80014814,168.28,168.19,1.09349534]
[1729927092113,12.80014814,168.28,168.25,2.975]
[1729927092811,12.80014814,168.3,168.2,12.80014814]
[1729927093004,17.98014814,168.3,168.26,2.9749]
[1729927094005,12.80014814,168.32,168.22,12.80014814]
[1729927094208,227.68917674,168.42,168.18,21.5937]
[1729927094209,227.68917674,168.42,168.26,12.80014814]
[1729927094405,12.80014814,168.37,168.27,3.6502]
[1729927095214,15.77334814,168.37,168.3,2.9743]
[1729927095406,15.77334814,168.37,168.27,3.6502]
[1729927095905,12.80014814,168.37,168.32,2.9738]
[1729927096218,17.98014814,168.37,168.32,2.9738]
[1729927096711,15.79892867,168.47,168.38,2.9728]
[1729927096712,15.77204814,168.44,168.38,2.9728]
[1729927099412,12.80014814,168.44,168.35,1.2863]
[1729927099614,12.80014814,168.44,168.35,2.502]
[1729927100616,12.80014814,168.42,168.35,2.502]
[1729927100816,12.80014814,168.42,168.35,1.2863]
[1729927101216,15.77234814,168.42,168.35,4.2595]
[1729927101520,15.77234814,168.42,168.35,1.2863]
[1729927102218,15.77234814,168.42,168.36,2.9732]
[1729927102521,2.9723,168.41,168.35,1.2863]
[1729927103017,2.9723,168.41,168.35,4.2595]
[1729927105221,12.80014814,168.42,168.35,4.2595]
[1729927106023,12.80014814,168.42,168.35,1.2863]
[1729927106520,20.09394365,168.68,168.35,14.08644814]
[1729927106521,17.98014814,168.46,168.35,14.08644814]
[1729927106722,2.9717,168.45,168.39,2.9726]
[1729927106922,12.80014814,168.46,168.38,5.18]
[1729927108326,15.77164814,168.46,168.4,2.9723]
[1729927108727,2.9715,168.46,168.4,2.9723]
[1729927109124,2.9715,168.46,168.38,5.18]
[1729927109325,2.9715,168.46,168.41,2.9723]
[1729927110527,12.80014814,168.48,168.38,5.18]
[1729927111228,2.9716,168.46,168.4,2.9724]
[1729927111818,2.9716,168.46,168.38,5.18]
[1729927112023,2.9716,168.46,168.41,2.9723]
[1729927114129,12.80014814,168.43,168.35,1.2863]
[1729927114336,5.18,168.45,168.35,1.2863]
[1729927114930,2.9723,168.42,168.37,2.9729]
[1729927115434,2.9723,168.41,168.36,2.9732]
[1729927115823,12.80014814,168.43,168.35,1.2863]
[1729927116035,2.9726,168.4,168.35,1.2863]
[1729927116923,2.9726,168.4,168.35,4.2596]
[1729927117328,2.9726,168.4,168.35,1.2863]
[1729927119440,2.9726,168.4,168.35,4.2597]
[1729927126048,12.80014814,168.43,168.35,1.2863]
[1729927126338,12.80014814,168.43,168.34,6.4854]
[1729927127238,2.9723,168.41,168.36,2.9732]
[1729927129843,2.9722,168.42,168.37,2.9729]
[1729927131450,2.9722,168.42,168.38,2.9728]
[1729927131752,15.77224814,168.43,168.34,6.4854]
[1729927132144,15.77224814,168.43,168.39,2.9726]
[1729927132344,2.9723,168.41,168.34,6.4854]
[1729927132952,2.9723,168.41,168.37,2.9729]
[1729927133553,2.9726,168.4,168.36,2.9731]
[1729927137561,2.9726,168.4,168.34,6.4854]
[1729927137766,2.9726,168.4,168.35,2.9732]
[1729927138065,2.9726,168.4,168.34,6.4854]
[1729927138266,15.77244814,168.41,168.36,2.973]
[1729927139065,12.80014814,168.41,168.37,2.9729]
[1729927139567,12.80014814,168.41,168.34,6.4854]
[1729927139766,15.77254814,168.41,168.36,2.9731]
[1729927140468,2.9719,168.44,168.39,2.9726]
[1729927140666,4.96,168.44,168.39,2.9726]
[1729927141462,2.9724,168.41,168.37,2.9729]
[1729927141859,12.80014814,168.4,168.3,1.2382]
[1729927142062,2.973,168.38,168.34,2.9734]
[1729927143975,12.80014814,168.38,168.31,4.96]
[1729927144166,15.77304814,168.38,168.31,4.96]
[1729927144366,12.80014814,168.38,168.31,4.96]
[1729927144976,2.973,168.37,168.32,2.9738]
[1729927145276,12.80014814,168.38,168.31,4.96]
[1729927146174,2.973,168.37,168.33,2.9736]
[1729927147074,12.80014814,168.38,168.25,2.5621]
[1729927147374,12.80014814,168.45,168.29,2.9743]
[1729927147375,2.9736,168.34,168.29,2.9743]
[1729927147572,4.96,168.35,168.27,1.48724611]
[1729927147768,7.9335,168.35,168.28,3.09349449]
[1729927147969,7.9335,168.35,168.27,1.4872661]
[1729927148168,4.96,168.35,168.28,3.09351606]
[1729927148366,4.96,168.35,168.26,1.3006]
[1729927148565,4.96,168.35,168.27,3.09391956]
[1729927148766,4.96,168.35,168.28,3.09391956]
[1729927148967,4.96,168.35,168.26,1.3006]
[1729927149376,4.96,168.35,168.27,3.09376802]
[1729927149574,4.96,168.35,168.26,1.3006]
[1729927149575,2.9736,168.34,168.29,2.9743]
[1729927150470,12.80014814,168.33,168.27,3.09435175]
[1729927150674,12.80014814,168.33,168.26,1.3006]
[1729927151873,57.78,168.43,168.26,1.3006]
[1729927152070,12.80014814,168.36,168.27,3.09429833]
[1729927152280,15.77404814,168.33,168.27,2.9747]
[1729927152467,20.73404814,168.33,168.27,2.9747]
[1729927152976,4.96,168.34,168.29,2.9743]
[1729927154273,4.96,168.34,168.3,2.9742]
[1729927154476,4.96,168.34,168.27,3.09412685]
[1729927154672,4.96,168.34,168.26,1.3006]
[1729927154978,7.9336,168.34,168.29,2.9743]
[1729927155284,12.80014814,168.36,168.26,6.2206]
[1729927155577,12.80014814,168.36,168.27,3.09465046]
[1729927155775,12.80014814,168.36,168.26,6.2206]
[1729927155980,12.80014814,168.36,168.27,3.09471023]
[1729927156178,2.9736,168.34,168.29,2.9743]
[1729927156575,12.80014814,168.36,168.26,6.2206]
[1729927156980,12.80014814,168.36,168.27,15.89529423]
[1729927157281,12.80014814,168.36,168.31,2.974]
[1729927158083,12.80014814,168.36,168.28,3.0952141]
[1729927158282,2.9734,168.35,168.29,2.9743]
[1729927159874,2.9738,168.33,168.28,2.9746]
[1729927160077,2.9738,168.33,168.26,6.2206]
[1729927160275,2.9738,168.33,168.27,3.09638114]
[1729927160478,2.9738,168.33,168.28,3.09638114]
[1729927160678,2.9738,168.33,168.27,2.9746]
[1729927161479,2.9738,168.33,168.28,6.07216954]
[1729927161679,2.9738,168.33,168.28,2.9746]
[1729927162279,12.80014814,168.34,168.26,1.3006]
[1729927162483,2.9741,168.31,168.27,3.09830335]
[1729927162784,2.9741,168.31,168.26,1.3006]
[1729927162980,2.9741,168.31,168.27,3.0984448]
[1729927163285,2.9741,168.31,168.26,4.2754]
[1729927163579,2.9741,168.31,168.27,3.09852892]
[1729927163882,12.80014814,168.32,168.26,4.2754]
[1729927164086,12.80014814,168.32,168.22,12.80014814]
[1729927164279,12.80014814,168.3,168.24,2.9753]
[1729927164480,12.80014814,168.3,168.25,3.09890456]
[1729927164681,12.80014814,168.3,168.24,2.9753]
[1729927165482,2.9745,168.29,168.24,2.9753]
[1729927165686,12.80014814,168.3,168.25,2.9751]
[1729927165875,15.77444814,168.3,168.25,2.9751]
[1729927166684,12.80014814,168.3,168.23,1.4876698]
[1729927166878,4.92,168.32,168.28,2.9746]
[1729927169289,12.80014814,168.33,168.25,4.92]
[1729927169588,4.92,168.34,168.26,3.09614887]
[1729927169786,4.92,168.34,168.25,18.93544814]
[1729927169985,4.92,168.34,168.26,3.09620303]
[1729927170187,4.92,168.34,168.25,18.93544814]
[1729927170491,4.92,168.34,168.3,2.9741]
[1729927170793,7.8936,168.34,168.3,2.9741]
[1729927171489,2.9731,168.37,168.33,2.9736]
[1729927171690,7.8931,168.37,168.33,2.9736]
[1729927173185,4.92,168.37,168.28,3.09514865]
[1729927173381,12.80014814,168.36,168.26,1.48733383]
[1729927173578,12.80014814,168.36,168.27,3.09566355]
[1729927173779,12.80014814,168.36,168.26,1.48735186]
[1729927173975,2.9734,168.35,168.31,2.9739]
[1729927174183,12.80014814,168.36,168.28,3.09569137]
[1729927174389,12.80014814,168.36,168.27,1.48733551]
[1729927174585,12.80014814,168.36,168.28,3.09515557]
[1729927174777,12.80014814,168.36,168.29,8.01508548]
[1729927174981,12.80014814,168.36,168.29,4.92]
[1729927175386,12.80014814,168.36,168.32,2.9738]
[1729927176482,4.92,168.37,168.29,4.92]
[1729927177791,7.8931,168.37,168.29,4.92]
[1729927178295,4.92,168.37,168.29,4.92]
[1729927178493,2.9732,168.36,168.29,4.92]
[1729927179093,2.9731,168.37,168.32,2.9738]
[1729927180284,2.9731,168.37,168.29,4.92]
[1729927180484,2.9731,168.37,168.33,2.9737]
[1729927180884,2.9735,168.35,168.31,2.974]
[1729927181291,4.92,168.38,168.31,2.974]
[1729927181790,2.9736,168.34,168.3,2.9742]
[1729927182292,11.2033296,168.34,168.3,2.9742]
[1729927183184,8.2297296,168.34,168.28,8.2297296]
[1729927183383,11.2033296,168.34,168.3,2.9742]
[1729927185480,4.84,168.33,168.11,29.11005678]
[1729927185794,8.2297296,168.27,168.25,2.9751]
[1729927186091,8.2297296,168.27,168.22,8.2297296]
[1729927186288,2.9743,168.3,168.25,2.9751]
[1729927186492,4.84,168.33,168.25,8.2297296]
[1729927186694,8.2297296,168.31,168.25,8.2297296]
[1729927187993,8.2297296,168.33,168.28,8.2297296]
[1729927188193,13.0697296,168.34,168.28,8.2297296]
[1729927188394,8.2297296,168.34,168.28,8.2297296]
[1729927188590,8.2297296,168.34,168.29,2.9744]
[1729927189192,7.8134,168.35,168.29,2.9744]
[1729927189193,8.2297296,168.32,168.29,2.9744]
[1729927194096,8.2297296,168.33,168.29,2.9744]
[1729927195597,8.2297296,168.33,168.26,6.135]
[1729927195805,8.2297296,168.33,168.27,8.2297296]
[1729927196598,11.2034296,168.33,168.28,2.9745]
[1729927198202,8.2297296,168.33,168.28,2.9745]
[1729927198605,8.2297296,168.33,168.27,8.2297296]
[1729927198810,8.2297296,168.33,168.29,2.9744]
[1729927200105,8.2297296,168.33,168.27,8.2297296]
[1729927200809,8.2297296,168.32,168.28,2.9744]
[1729927201005,4.84,168.36,168.26,6.135]
[1729927201006,8.2297296,168.31,168.26,1.295]
[1729927201611,8.2297296,168.31,168.28,2.9744]
[1729927201798,8.2297296,168.32,168.26,9.5247296]
[1729927202002,8.2297296,168.34,168.28,8.2297296]
[1729927203499,8.2297296,168.34,168.28,9.5237296]
[1729927203907,8.2297296,168.36,168.3,8.2297296]
[1729927204102,8.2297296,168.36,168.32,2.9738]
[1729927205609,8.2297296,168.36,168.26,1.295]
[1729927205610,8.2297296,168.33,168.13,5.9544]
[1729927205914,8.2297296,168.25,168.19,8.2297296]
[1729927206108,8.2297296,168.25,168.2,4.59947055]
[1729927206305,8.2297296,168.25,168.21,4.59947055]
[1729927206506,8.2297296,168.25,168.22,3.11158188]
[1729927206806,8.2297296,168.25,168.2,8.2297296]
[1729927207009,8.2297296,168.25,168.22,2.9756]
[1729927210809,8.2297296,168.26,168.22,2.9756]
[1729927212410,8.2297296,168.26,168.21,8.2297296]
[1729927212621,8.2297296,168.26,168.22,3.11061903]
[1729927212911,8.2297296,168.31,168.24,8.2297296]
[1729927213117,8.2297296,168.31,168.26,11.2045296]
[1729927213411,4.84,168.33,168.17,2.5752]
[1729927213412,8.2297296,168.28,168.17,2.5752]
[1729927213614,2.9749,168.27,168.21,2.9757]
[1729927213824,8.2297296,168.25,168.21,2.9757]
[1729927214506,1.2158,168.33,168.17,7.4152]
[1729927214507,1.2158,168.33,168.23,8.2297296]
[1729927214719,1.2158,168.33,168.17,7.4152]
[1729927214720,8.2297296,168.31,168.25,8.2297296]
[1729927215915,8.2297296,168.26,168.18,8.2297296]
[1729927216121,8.2297296,168.23,168.19,4.60026961]
[1729927216424,8.2297296,168.23,168.2,3.11212273]
[1729927216715,8.2297296,168.23,168.19,2.9762]
[1729927217321,4.84,168.31,168.22,8.2297296]
[1729927217515,8.2297296,168.28,168.22,8.2297296]
[1729927218317,8.2297296,168.29,168.25,8.2297296]
[1729927218919,8.2297296,168.28,168.22,8.2297296]
[1729927219212,8.2297296,168.28,168.24,2.9752]
[1729927219616,8.2297296,168.28,168.21,4.84]
[1729927219815,8.2297296,168.28,168.22,3.11280093]
[1729927220122,8.2297296,168.28,168.23,3.11224808]
[1729927220324,8.2297296,168.28,168.22,13.0697296]
[1729927220617,8.2297296,168.28,168.23,3.11142834]
[1729927220920,8.2297296,168.28,168.23,2.9754]
[1729927221418,8.2297296,168.31,168.27,2.9748]
[1729927221620,8.2297296,168.31,168.26,2.466]
[1729927221819,8.2297296,168.31,168.26,15.5357296]
[1729927223017,8.2297296,168.33,168.27,8.2297296]
[1729927223809,8.2297296,168.33,168.3,2.9742]
[1729927224213,8.2297296,168.34,168.3,2.9742]
[1729927224620,2.9726,168.4,168.33,2.9736]
[1729927224820,8.2297296,168.38,168.32,8.2297296]
[1729927225319,8.2297296,168.38,168.33,2.9737]
[1729927228816,8.2297296,168.38,168.32,13.0697296]
[1729927229020,8.2297296,168.38,168.34,2.9735]
[1729927229929,8.2297296,168.37,168.34,2.9735]
[1729927231816,2.9728,168.39,168.34,2.9735]
[1729927232018,8.2297296,168.37,168.34,2.9735]
[1729927232221,8.2297296,168.37,168.32,13.0697296]
[1729927232421,8.2297296,168.34,168.28,8.2297296]
[1729927232625,2.4622,168.45,168.29,4.84]
[1729927232626,8.2297296,168.32,168.29,4.84]
[1729927232830,8.2297296,168.32,168.29,2.9743]
[1729927233130,4.84,168.4,168.29,4.84]
[1729927233425,8.2297296,168.32,168.29,4.84]
[1729927233726,8.2297296,168.32,168.29,7.8144]
[1729927234725,8.2297296,168.32,168.3,2.9742]
[1729927234935,8.2297296,168.32,168.29,4.84]
[1729927235728,8.2297296,168.32,168.29,7.8144]
[1729927236433,11.2031296,168.35,168.3,8.2297296]
[1729927236731,2.4622,168.45,168.3,8.2297296]
[1729927236934,8.2297296,168.36,168.3,8.2297296]
[1729927238036,4.84,168.44,168.32,2.9738]
[1729927238037,2.9729,168.38,168.32,2.9738]
[1729927238227,2.4622,168.45,168.33,13.0697296]
[1729927238430,8.2297296,168.39,168.34,8.2297296]
[1729927238625,8.2297296,168.39,168.35,2.9733]
[1729927241640,2.9726,168.4,168.36,8.2297296]
[1729927241835,11.2023296,168.4,168.36,8.2297296]
[1729927242243,8.2297296,168.4,168.36,11.2028296]
[1729927242444,1.2494,168.45,168.37,13.0697296]
[1729927242636,8.2297296,168.42,168.37,13.0697296]
[1729927242838,8.2297296,168.42,168.38,2.9727]
[1729927243237,2.972,168.43,168.38,2.9727]
[1729927243442,11.2017296,168.43,168.38,2.9727]
[1729927244544,442.0,168.35,168.05,2.6070303]
[1729927244743,442.0,168.35,167.96,21.93534256]
[1729927244744,8.2297296,168.2,168.16,4.59982723]
[1729927244941,230.6625,168.48,168.17,3.11215899]
[1729927244942,8.2297296,168.18,168.17,3.11215899]
[1729927245149,11.2061296,168.18,168.12,1.4885502]
[1729927245345,11.2061296,168.18,168.06,1.2643]
[1729927245346,75.62,168.29,168.13,4.60482882]
[1729927245551,75.62,168.29,168.06,1.2643]
[1729927245552,8.2297296,168.19,168.14,1.4885502]
[1729927245742,8.2297296,168.19,168.12,8.2297296]
[1729927245940,6.04,168.22,168.13,3.11733501]
[1729927246143,8.2297296,168.19,168.12,8.2297296]
[1729927247842,6.06,168.22,168.12,8.2297296]
[1729927248045,8.2297296,168.18,168.12,8.2297296]
[1729927248240,15.84407954,168.21,168.11,2.9776]
[1729927250048,15.84407954,168.21,168.12,3.11491985]
[1729927250852,12.86817954,168.19,168.12,3.11491985]
[1729927251353,12.86817954,168.19,168.11,2.9776]
[1729927251745,15.84437954,168.19,168.1,2.9778]
[1729927252149,15.84437954,168.19,168.09,12.86817954]
[1729927253253,15.84437954,168.19,168.09,15.84617954]
[1729927256254,2.9762,168.19,168.09,15.84617954]
[1729927256552,15.84437954,168.19,168.1,2.9778]
[1729927258951,2.9762,168.19,168.11,2.9775]
[1729927259552,12.86817954,168.2,168.09,12.86817954]
[1729927259752,15.84427954,168.2,168.12,2.9774]
[1729927260150,12.86817954,168.2,168.12,2.9774]
[1729927260347,12.86817954,168.2,168.13,2.9772]
[1729927260851,6.06,168.21,168.13,2.9772]
[1729927261055,12.86817954,168.19,168.13,2.9772]
[1729927261754,12.86817954,168.19,168.09,12.86817954]
[1729927261955,12.86817954,168.18,168.12,2.9774]
[1729927262152,2.9762,168.19,168.12,2.9774]
[1729927262348,6.06,168.21,168.09,12.86817954]
[1729927262660,12.15074758,168.2,168.09,12.86817954]
[1729927262857,12.15074758,168.2,168.13,2.9771]
[1729927262858,25.01892712,168.2,168.13,2.9771]
[1729927263163,12.15074758,168.19,168.09,12.86817954]
[1729927263350,12.15074758,168.18,168.09,12.86817954]
[1729927263556,12.86817954,168.19,168.12,2.9774]
[1729927263754,12.86817954,168.19,168.09,12.86817954]
[1729927264154,12.86817954,168.19,168.13,2.9771]
[1729927264351,12.86817954,168.18,168.13,2.9771]
[1729927268562,6.06,168.21,168.1,6.06]
[1729927268866,2.9762,168.2,168.07,12.86817954]
[1729927269166,12.86817954,168.16,168.06,1.2643]
[1729927269468,12.86817954,168.14,168.06,1.2643]
[1729927269659,239.48069007,168.29,168.06,14.13247954]
[1729927269858,12.86817954,168.17,168.08,12.86817954]
[1729927270466,2.9766,168.17,168.09,8.2381174]
[1729927270663,8.2381174,168.14,168.09,8.2381174]
[1729927271263,8.2381174,168.14,168.08,2.9781]
[1729927271468,8.2381174,168.14,168.08,8.2381174]
[1729927271668,2.9764,168.18,168.08,8.2381174]
[1729927271970,8.2381174,168.15,168.12,2.9773]
[1729927272160,8.2381174,168.13,168.06,1.2643]
[1729927272367,8.2381174,168.12,168.06,15.5624174]
[1729927272873,8.2381174,168.12,168.06,9.5024174]